bitfinex-derivatives/quotes_ETHF0:USTF0_20251203
["timestamp","ask_amount","ask_price","bid_price","bid_amount"]
[1764775109697,3.2078,3073.3,3073.2,0.00488647]
[1764775110103,3.37044,3073.3,3073.2,0.00488647]
[1764775110302,4.11116842,3073.3,3073.2,0.00488647]
[1764775110601,4.44476371,3073.3,3073.2,0.00488647]
[1764775110801,4.44476371,3073.3,3072.6,14.4018]
[1764775111001,2.96937644,3073.2,3072.6,14.4018]
[1764775111302,0.1627,3072.2,3071.8,3.2078]
[1764775111508,0.16273,3071.6,3071.3,3.2078]
[1764775111710,0.00488647,3071.8,3071.6,1.9164]
[1764775112006,0.00488647,3071.8,3071.7,3.2078]
[1764775112411,0.00763925,3071.8,3071.7,0.00419254]
[1764775113400,0.00763925,3071.8,3070.2,1.9164]
[1764775113401,12.02554289,3071.8,3070.2,1.9164]
[1764775113602,2.22864802,3070.4,3069.5,1.9164]
[1764775113802,3.2078,3070.1,3069.5,1.9164]
[1764775114106,3.2078,3069.7,3069.5,1.9164]
[1764775114505,3.21175172,3069.7,3069.5,0.00395566]
[1764775114810,3.37458172,3069.7,3069.5,0.00395566]
[1764775115207,3.21175172,3069.7,3069.3,0.00488647]
[1764775115510,3.21175172,3069.7,3068.5,2.032]
[1764775115511,0.16285,3069.4,3068.5,2.032]
[1764775115707,3.2078,3068.9,3068.5,2.032]
[1764775115898,2.22864802,3068.6,3068.5,2.032]
[1764775116102,3.2078,3068.9,3068.5,2.032]
[1764775116299,3.2078,3068.9,3068.5,2.03617297]
[1764775116606,3.2078,3068.6,3068.5,2.03617297]
[1764775117106,3.2078,3068.6,3068.5,0.00417297]
[1764775117508,3.2078,3069.1,3068.8,2.0905]
[1764775120710,0.00395172,3069.7,3068.8,2.0905]
[1764775120711,3.21175172,3069.7,3069.6,2.0905]
[1764775121713,3.21175172,3069.7,3069.0,3.2078]
[1764775122810,3.21175172,3069.7,3069.6,2.0905]
[1764775123010,3.21175172,3069.7,3069.0,3.2078]
[1764775123914,2.22864802,3069.6,3069.0,3.2078]
[1764775126722,3.21175172,3069.7,3069.5,2.0905]
[1764775131434,3.21175172,3069.7,3069.6,6.944]
[1764775132036,3.2078,3070.5,3070.4,3.5707]
[1764775132235,3.2078,3070.5,3070.2,2.0905]
[1764775132433,3.2078,3070.5,3069.8,3.2078]
[1764775133032,3.21590725,3070.5,3069.8,3.21268647]
[1764775133640,2.22864802,3070.3,3069.8,3.21268647]
[1764775136941,3.21590725,3070.5,3069.8,3.21268647]
[1764775139434,3.21590725,3070.5,3070.4,6.944]
[1764775139732,3.21590725,3070.5,3070.4,3.5707]
[1764775140532,3.21590725,3070.5,3070.2,2.0905]
[1764775140939,0.7465962,3070.4,3069.8,0.00488647]
[1764775141133,3.2078,3069.9,3069.3,3.2078]
[1764775141335,0.7465962,3069.8,3068.9,12.3498]
[1764775141536,3.2078,3069.5,3068.9,12.3498]
[1764775141730,0.7465962,3069.4,3068.9,12.3498]
[1764775142831,0.7465962,3069.4,3068.8,2.09538647]
[1764775142832,2.22864802,3069.0,3068.8,0.00488647]
[1764775143028,2.22864802,3069.0,3068.0,3.2078]
[1764775143029,1.08104287,3068.9,3068.0,3.2078]
[1764775143330,0.16291,3068.3,3067.6,3.2078]
[1764775143638,2.22864802,3068.1,3067.6,3.2078]
[1764775143937,0.7465962,3068.0,3067.6,3.2078]
[1764775144140,0.00488647,3068.2,3068.1,8.4182]
[1764775144440,0.75205749,3068.2,3068.1,8.4182]
[1764775144637,3.2078,3068.6,3068.5,6.5133]
[1764775144939,3.2078,3068.6,3068.1,5.1127]
[1764775145435,3.2078,3068.6,3068.1,1.9049]
[1764775145830,3.2078,3068.2,3068.0,0.00488647]
[1764775146036,1.50226533,3068.1,3068.0,0.00488647]
[1764775146236,0.33451184,3068.1,3068.0,0.00488647]
[1764775146436,0.16292,3068.0,3067.6,0.0026018]
[1764775146733,5.43644802,3067.7,3067.6,0.0026018]
[1764775147841,1.32899917,3068.0,3067.6,0.0026018]
[1764775148039,3.21268647,3068.7,3068.1,1.9049]
[1764775148345,5.44133449,3068.7,3068.1,1.9049]
[1764775148842,3.2078,3068.3,3068.1,1.9049]
[1764775149146,2.22864802,3068.2,3067.8,3.2078]
[1764775149939,2.22864802,3068.2,3067.6,0.0026018]
[1764775150142,3.2078,3067.9,3067.6,0.0026018]
[1764775150637,5.12086003,3067.9,3067.6,0.0026018]
[1764775151242,3.2078,3067.9,3067.6,0.0026018]
[1764775151639,3.2078,3068.3,3068.1,1.9049]
[1764775151832,3.2078,3069.2,3068.8,1.9049]
[1764775152243,5.12086003,3069.2,3068.8,1.9049]
[1764775152837,5.12480982,3069.2,3068.8,1.9049]
[1764775153247,3.21174979,3069.2,3068.8,1.9049]
[1764775154045,1.91306003,3069.1,3068.8,1.9049]
[1764775154846,3.21174979,3069.2,3068.8,1.9049]
[1764775155246,0.00394979,3069.2,3068.8,1.9049]
[1764775155553,3.2078,3069.6,3069.5,1.9049]
[1764775155851,3.2078,3070.2,3069.5,5.1127]
[1764775156441,3.2166145,3070.2,3069.5,5.1127]
[1764775156641,0.0088145,3070.2,3070.0,3.2078]
[1764775156844,0.0088145,3070.2,3070.0,3.21068803]
[1764775157346,3.2078,3071.1,3070.9,1.9049]
[1764775157748,1.91306003,3071.6,3070.9,1.9049]
[1764775157947,1.91306003,3071.6,3071.0,3.2078]
[1764775158352,0.00745171,3071.6,3071.1,0.16276]
[1764775158551,3.2078,3072.3,3071.6,1.9049]
[1764775158847,3.2078,3072.3,3071.9,3.2078]
[1764775159555,3.21121885,3072.3,3071.9,3.2078]
[1764775159849,1.91306003,3072.2,3071.9,3.2078]
[1764775160055,1.91306003,3072.2,3071.6,1.9049]
[1764775160250,1.91306003,3072.2,3071.3,3.2078]
[1764775160251,1.91306003,3071.7,3071.3,3.2078]
[1764775160453,3.21121885,3072.3,3071.3,3.2078]
[1764775162654,3.21121885,3072.3,3071.7,3.2078]
[1764775162951,0.00341885,3072.3,3072.1,3.2078]
[1764775163157,3.2078,3073.2,3072.3,1.9049]
[1764775163350,3.2078,3073.2,3072.4,3.2078]
[1764775164055,0.00488647,3073.1,3072.4,3.21158864]
[1764775165056,2.63404416,3073.0,3072.4,3.21158864]
[1764775165856,3.2078,3072.5,3072.4,0.00378864]
[1764775166358,3.2078,3072.9,3072.4,0.00378864]
[1764775167344,3.2078,3072.5,3072.4,0.00378864]
[1764775167548,0.16273,3071.7,3070.7,3.2078]
[1764775167750,0.16275,3071.2,3070.7,3.2078]
[1764775167956,3.2078,3071.1,3069.7,3.2078]
[1764775168252,3.2078,3070.2,3069.7,3.2078]
[1764775168448,3.21017062,3070.2,3069.7,3.21093184]
[1764775168851,3.2078,3069.8,3069.7,0.00313184]
[1764775169245,0.00237062,3070.2,3069.7,3.21093184]
[1764775169446,3.2078,3070.6,3069.7,3.21093184]
[1764775169649,3.37056,3071.1,3070.4,1.9049]
[1764775169956,2.63893063,3071.4,3070.7,3.2078]
[1764775170357,3.2078,3071.1,3070.4,1.9049]
[1764775170758,3.2078,3071.1,3070.5,3.2078]
[1764775171959,3.2078,3070.7,3070.0,3.2078]
[1764775172255,3.2078,3070.7,3070.4,1.9049]
[1764775172590,3.2078,3071.3,3070.5,3.2078]
[1764775172796,3.2078,3071.3,3070.4,1.9049]
[1764775172958,3.2078,3070.8,3070.4,1.9049]
[1764775173559,3.2078,3070.8,3069.8,3.2078]
[1764775173760,3.2078,3070.8,3069.7,0.00313184]
[1764775173761,3.2078,3070.3,3069.7,0.00313184]
[1764775174060,3.2078,3069.9,3069.7,0.00313184]
[1764775177652,3.2078,3070.3,3069.7,3.21093184]
[1764775178352,3.2078,3070.8,3070.2,3.2078]
[1764775180361,1.9096578,3070.7,3070.2,3.2078]
[1764775180959,1.9096578,3070.7,3070.4,1.7888]
[1764775181260,3.2078,3071.2,3070.6,3.2078]
[1764775182063,0.00871469,3071.4,3070.9,1.7888]
[1764775183154,0.00871469,3071.4,3071.0,3.2078]
[1764775183365,3.2078,3072.0,3071.0,3.37056]
[1764775184151,3.2078,3072.4,3071.8,3.2078]
[1764775184353,3.21601642,3072.4,3071.8,0.00488647]
[1764775185764,3.2078,3072.0,3071.8,0.00488647]
[1764775187665,12.00407349,3072.0,3071.3,3.2078]
[1764775187865,6.00407349,3072.0,3071.3,3.2078]
[1764775188460,5.84136349,3072.0,3071.3,3.2078]
[1764775188763,5.84136349,3072.0,3071.3,3.21268647]
[1764775189359,0.7410808,3071.9,3071.3,3.21268647]
[1764775189665,3.2078,3072.0,3071.3,3.21268647]
[1764775195959,3.2078,3072.0,3071.6,1.7888]
[1764775198971,2.63356349,3071.7,3069.7,2.29091664]
[1764775199266,3.2078,3069.8,3069.0,1.7888]
[1764775199473,2.63356349,3070.2,3069.0,1.7888]
[1764775199658,3.2078,3069.7,3069.6,1.7888]
[1764775199864,3.2078,3070.2,3069.6,1.7888]
[1764775200064,0.75309066,3070.1,3069.6,1.79256134]
[1764775200288,3.2078,3069.8,3069.6,0.00864781]
[1764775200466,0.75304277,3069.7,3069.0,1.7888]
[1764775200769,3.2078,3069.4,3069.0,1.7888]
[1764775200963,0.00781732,3070.2,3069.5,1.7888]
[1764775201160,0.00781732,3070.2,3069.7,3.2078]
[1764775201363,0.00781732,3070.2,3069.7,3.21128993]
[1764775201773,3.21561732,3070.2,3069.7,0.00348993]
[1764775202179,3.21561732,3070.2,3069.7,3.21128993]
[1764775202376,0.00488647,3070.2,3070.1,3.2078]
[1764775202573,3.2078,3071.0,3070.9,1.7888]
[1764775202774,4.01561968,3071.0,3070.2,1.7888]
[1764775203074,5.84136349,3071.4,3070.9,1.7888]
[1764775203275,0.82270787,3071.3,3071.0,3.2078]
[1764775203474,3.2078,3071.8,3071.0,3.2078]
[1764775203684,0.82760682,3071.7,3071.1,0.00488647]
[1764775203870,3.2078,3071.3,3071.1,0.00488647]
[1764775204076,0.82272035,3071.2,3071.1,0.00488647]
[1764775204473,2.73251387,3071.2,3070.2,5.5508]
[1764775204682,1.90979352,3070.7,3070.2,5.5508]
[1764775204881,0.82272035,3070.6,3070.2,5.5508]
[1764775206086,0.82272035,3070.6,3070.1,3.21268647]
[1764775206280,0.82272035,3070.5,3070.2,1.8626]
[1764775206485,5.11759352,3070.3,3070.1,0.00488647]
[1764775206684,0.82272035,3070.2,3070.1,0.00488647]
[1764775206889,0.82272035,3070.6,3070.2,1.8626]
[1764775207184,0.82272238,3070.5,3070.2,1.8626]
[1764775207386,0.82272238,3070.4,3070.2,1.8626]
[1764775207579,3.2078,3070.7,3070.2,1.8626]
[1764775207580,2.7325159,3070.3,3070.2,1.8626]
[1764775207798,6.27463248,3070.3,3069.7,0.00348993]
[1764775207981,1.90979352,3069.8,3069.7,0.00348993]
[1764775208283,2.7325159,3069.8,3069.7,0.00348993]
[1764775208486,2.7325159,3069.8,3068.5,4.84]
[1764775208487,8.7325159,3069.8,3068.9,3.2078]
[1764775208692,2.07266352,3069.0,3067.7,3.2078]
[1764775208881,4.37247262,3068.5,3067.7,3.2078]
[1764775209081,2.7325159,3068.4,3067.8,0.00488647]
[1764775209282,1.16467262,3068.7,3068.1,3.2078]
[1764775209479,1.90979352,3068.6,3068.1,0.00237005]
[1764775209688,3.2078,3068.2,3068.1,0.00237005]
[1764775209985,4.02655824,3068.2,3068.1,0.00237005]
[1764775210188,4.02655824,3068.2,3067.4,3.2078]
[1764775210381,0.81875824,3068.1,3067.4,3.2078]
[1764775210582,3.2078,3067.8,3067.4,3.2078]
[1764775210885,3.2078,3067.8,3067.0,3.2078]
[1764775211292,0.00488647,3067.7,3067.0,3.21114353]
[1764775212184,0.00488647,3067.7,3067.5,3.2078]
[1764775212579,3.2078,3068.3,3067.5,9.2078]
[1764775212789,3.2078,3068.3,3068.0,1.8626]
[1764775213182,3.21013965,3068.7,3068.0,1.8626]
[1764775213391,0.00233965,3068.7,3068.3,3.2078]
[1764775214087,6.34939775,3068.7,3068.2,0.00488647]
[1764775214493,3.21013965,3068.7,3068.2,0.00488647]
[1764775215893,0.00233965,3068.7,3068.5,3.2078]
[1764775216092,3.2078,3069.6,3068.5,3.2078]
[1764775216093,3.2078,3069.6,3068.8,1.8626]
[1764775216293,3.2078,3069.6,3068.8,3.2078]
[1764775216496,3.2078,3069.2,3068.2,0.00488647]
[1764775216794,3.2078,3069.2,3068.8,1.8626]
[1764775217196,3.21152282,3069.2,3068.8,1.8626]
[1764775217794,0.00372282,3069.2,3069.1,3.2078]
[1764775218696,0.00488647,3069.3,3069.1,3.2078]
[1764775218897,3.2078,3070.1,3069.1,3.2078]
[1764775219195,3.2078,3070.1,3068.8,1.8626]
[1764775219196,3.2078,3070.1,3069.6,1.8626]
[1764775219595,3.21100169,3070.1,3069.6,1.8626]
[1764775219794,3.21100169,3070.1,3069.6,1.86528771]
[1764775220493,3.21100169,3070.1,3069.6,0.00268771]
[1764775220894,3.2078,3069.7,3069.6,0.00268771]
[1764775221496,0.00320169,3070.1,3069.6,1.86528771]
[1764775221497,3.21100169,3070.1,3069.6,1.86528771]
[1764775221888,0.00320169,3070.1,3069.9,3.2078]
[1764775222093,3.2078,3071.5,3069.9,3.2078]
[1764775222292,3.2078,3071.9,3071.3,3.2078]
[1764775222809,3.2078,3072.3,3071.3,3.2078]
[1764775222984,3.2078,3072.3,3072.0,1.8626]
[1764775223189,0.00264237,3072.3,3072.0,1.8655178]
[1764775224188,3.21044237,3072.3,3072.0,0.0029178]
[1764775225097,3.21044237,3072.3,3071.2,1.8626]
[1764775225098,3.37314237,3072.3,3071.2,5.0704]
[1764775225290,3.2078,3071.9,3071.2,3.2078]
[1764775225488,3.2078,3071.9,3071.2,1.8626]
[1764775225686,3.2078,3071.5,3070.7,3.2078]
[1764775226098,3.2078,3071.5,3070.7,3.21203192]
[1764775226296,3.2078,3071.5,3070.8,0.00488647]
[1764775226490,3.2078,3071.9,3070.9,3.2078]
[1764775227602,3.2078,3071.5,3070.9,3.2078]
[1764775227905,3.1392581,3071.4,3070.9,3.2078]
[1764775228090,3.2078,3071.5,3070.9,3.2078]
[1764775230201,3.2078,3071.5,3071.2,1.8626]
[1764775230697,3.2078,3071.5,3070.9,3.2078]
[1764775231605,3.2078,3071.0,3070.8,0.00488647]
[1764775231802,3.37056,3071.0,3070.8,0.00488647]
[1764775232905,3.2078,3071.0,3070.8,0.00488647]
[1764775233094,9.2078,3071.0,3070.8,0.00488647]
[1764775233291,3.2078,3071.0,3070.8,0.00488647]
[1764775234908,3.2078,3071.4,3071.2,1.7166]
[1764775235399,3.2078,3071.8,3071.2,7.7166]
[1764775235707,3.21044237,3072.3,3071.4,3.2078]
[1764775236204,3.2078,3071.9,3071.2,1.7166]
[1764775237199,3.2078,3071.3,3070.8,0.00488647]
[1764775237396,3.2078,3071.7,3070.8,3.21268647]
[1764775237594,3.2078,3071.7,3070.8,0.00488647]
[1764775237812,3.2078,3071.3,3070.8,0.00488647]
[1764775238118,3.2078,3071.4,3070.8,0.00488647]
[1764775238326,3.2078,3070.9,3070.8,0.00488647]
[1764775240021,3.1392581,3070.3,3069.5,3.2078]
[1764775240223,3.2078,3070.2,3069.5,3.2078]
[1764775240919,3.21268647,3070.2,3069.6,1.7094]
[1764775241120,3.2078,3069.8,3069.5,0.00893828]
[1764775241318,3.21075987,3069.8,3069.5,0.00893828]
[1764775242623,3.1392581,3069.7,3069.5,0.00893828]
[1764775242814,3.1392581,3069.7,3068.6,3.2078]
[1764775243015,3.2078,3069.0,3068.1,3.2078]
[1764775243620,0.16288,3068.9,3068.1,3.2078]
[1764775243923,3.2078,3068.3,3068.2,0.00488647]
[1764775244118,4.15033846,3068.3,3067.2,4.9172]
[1764775244423,3.37071,3068.3,3067.2,4.9172]
[1764775245015,3.2078,3067.9,3067.2,4.9172]
[1764775245220,3.2078,3067.9,3067.2,4.92012448]
[1764775247325,3.2078,3067.5,3067.2,1.71232448]
[1764775247526,3.21123357,3067.5,3067.2,0.00292448]
[1764775247820,0.00488647,3068.6,3068.0,1.7094]
[1764775248523,3.2078,3068.4,3068.0,1.7094]
[1764775248721,3.21161972,3068.4,3068.0,1.7094]
[1764775249322,3.21161972,3068.4,3067.6,3.2078]
[1764775250830,0.00381972,3068.4,3068.0,4.9172]
[1764775251322,0.00381972,3068.4,3068.0,1.7094]
[1764775251625,0.00381972,3068.4,3068.0,4.9172]
[1764775252625,0.00381972,3068.4,3068.0,1.7094]
[1764775252818,3.21161972,3068.4,3068.0,1.7094]
[1764775253021,0.00381972,3068.4,3068.0,1.7094]
[1764775253221,0.00381972,3068.4,3068.0,4.9172]
[1764775254828,0.00488647,3068.6,3068.0,5.08012]
[1764775255128,0.00488647,3068.6,3068.5,3.2078]
[1764775255723,0.00826662,3068.6,3068.5,3.2078]
[1764775257432,3.2078,3069.6,3068.8,1.7094]
[1764775257628,3.2078,3069.6,3069.5,1.7094]
[1764775257829,3.2078,3069.6,3068.9,3.2078]
[1764775258029,3.2078,3069.6,3068.9,3.37067]
[1764775258422,3.21509104,3069.6,3068.9,3.37874825]
[1764775258628,3.21509104,3069.6,3069.5,1.7094]
[1764775258832,0.00729104,3069.6,3069.5,1.7094]
[1764775259935,3.21509104,3069.6,3068.9,3.21587825]
[1764775260729,0.16288,3068.9,3068.3,3.2078]
[1764775260928,3.2078,3068.7,3068.3,3.2078]
[1764775261830,3.2078,3068.7,3068.3,3.21012978]
[1764775262537,4.0748581,3069.5,3068.3,3.21012978]
[1764775262538,3.21509104,3069.6,3068.8,1.7094]
[1764775262828,3.21509104,3069.6,3068.9,3.2078]
[1764775263336,3.21509104,3069.6,3069.5,1.5566]
[1764775263535,3.21509104,3069.6,3068.9,3.2078]
[1764775266727,0.00729104,3069.6,3069.1,3.2078]
[1764775266922,0.00729104,3069.6,3069.5,1.5566]
[1764775267128,3.2078,3070.2,3069.5,4.92724]
[1764775267332,3.2078,3070.6,3069.8,0.16282]
[1764775267636,0.1628,3070.4,3069.5,4.7644]
[1764775267936,0.77910742,3070.3,3069.5,4.7644]
[1764775268135,0.1628,3070.4,3069.5,4.7644]
[1764775268338,0.77942104,3070.3,3069.5,4.7644]
[1764775268525,0.00488647,3070.2,3069.6,0.00488647]
[1764775269229,3.98724946,3070.1,3069.6,0.00488647]
[1764775269431,1.11558896,3070.0,3069.6,0.00488647]
[1764775269731,3.2078,3070.1,3069.6,0.00488647]
[1764775269732,0.77944946,3069.9,3069.6,0.00488647]
[1764775270035,0.77944946,3069.8,3069.6,0.00488647]
[1764775270234,0.77944946,3069.7,3069.6,0.00488647]
[1764775270430,0.77944946,3070.0,3069.6,0.00488647]
[1764775272542,3.2078,3070.1,3069.6,0.00488647]
[1764775272737,0.7798177,3070.0,3069.6,0.00488647]
[1764775272939,3.2078,3070.1,3069.6,0.00488647]
[1764775273334,0.77973348,3070.0,3069.6,0.00488647]
[1764775273632,3.1392581,3069.8,3069.6,0.00488647]
[1764775274034,3.2078,3070.1,3069.6,0.00488647]
[1764775274237,0.77975098,3070.0,3069.6,0.00488647]
[1764775275531,3.2078,3069.7,3069.6,0.00488647]
[1764775275734,3.98755098,3069.7,3069.6,0.00488647]
[1764775276041,4.15038098,3069.7,3069.6,0.00488647]
[1764775276336,4.15038098,3069.7,3067.7,2.2949693]
[1764775276337,0.9356,3069.5,3067.7,3.2078]
[1764775276542,0.1629,3068.4,3067.7,3.2078]
[1764775276739,2.63811449,3067.8,3066.3,3.2078]
[1764775276943,3.2078,3067.0,3066.3,3.2078]
[1764775277638,0.00274014,3067.0,3066.7,1.5593469]
[1764775278038,0.00274014,3067.0,3066.9,3.2078]
[1764775278238,0.00274014,3067.0,3066.7,1.5593469]
[1764775279543,3.2078,3066.8,3066.7,0.0027469]
[1764775279844,3.2078,3066.8,3065.3,1.5566]
[1764775279845,0.16301,3066.4,3065.3,1.5566]
[1764775280042,3.2078,3066.2,3064.8,3.2078]
[1764775280244,3.2078,3065.7,3064.8,3.2078]
[1764775280450,0.00488647,3065.6,3064.8,3.2078]
[1764775280744,3.2078,3065.3,3064.8,0.00385686]
[1764775281242,3.2078,3065.3,3064.0,3.2078]
[1764775281243,3.2078,3064.9,3064.0,3.2078]
[1764775281443,1.16931528,3065.6,3063.9,1.5566]
[1764775281444,5.84591449,3065.0,3063.9,4.7644]
[1764775281635,5.84591449,3065.0,3064.1,3.2078]
[1764775281838,5.84591449,3065.0,3063.9,1.5566]
[1764775282038,5.84591449,3065.0,3064.1,3.2078]
[1764775282234,3.2078,3065.0,3064.1,3.21192828]
[1764775283248,3.2078,3064.5,3064.2,0.1947]
[1764775283446,3.2108804,3064.5,3064.2,0.1947]
[1764775283644,2.63811449,3064.4,3064.2,0.1947]
[1764775284058,6.0,3064.3,3063.1,3.2078]
[1764775284347,3.2078,3063.7,3063.2,1.5566]
[1764775284941,3.2078,3063.7,3063.2,1.55967019]
[1764775285547,3.2078,3063.7,3063.3,3.2078]
[1764775287151,3.2078,3063.0,3060.8,3.2078]
[1764775287352,6.65,3063.6,3060.8,3.2078]
[1764775287353,3.2078,3061.7,3060.8,1.5566]
[1764775287557,5.84591449,3062.0,3061.0,3.2078]
[1764775287855,3.2078,3062.0,3061.6,1.5566]
[1764775288058,3.2078,3062.0,3060.8,1.5566]
[1764775288059,2.63811449,3061.9,3060.8,1.5566]
[1764775288257,3.2078,3061.6,3060.8,1.55995386]
[1764775288555,3.2078,3060.9,3060.8,0.00335386]
[1764775290454,3.2078,3060.9,3059.7,2.2078]
[1764775290646,0.00489452,3060.6,3060.3,3.2078]
[1764775291047,0.00489452,3060.6,3060.0,1.5566]
[1764775291555,3.2078,3060.5,3060.0,1.5600979]
[1764775292051,3.2078,3060.1,3060.0,0.0034979]
[1764775293255,5.84591449,3060.1,3060.0,0.0034979]
[1764775293652,5.84591449,3060.1,3059.0,3.2078]
[1764775293653,11.84591449,3060.1,3059.0,3.2078]
[1764775293849,3.2078,3059.5,3059.0,3.2078]
[1764775294051,3.2078,3059.1,3058.4,3.2078]
[1764775294650,0.00307594,3059.1,3058.6,0.19666897]
[1764775294855,0.00307594,3059.1,3058.8,3.2078]
[1764775295247,0.00307594,3059.1,3058.6,10.27708897]
[1764775295248,3.2078,3059.0,3058.6,0.19666897]
[1764775295449,0.00307594,3059.1,3058.6,0.19666897]
[1764775295664,3.2078,3059.0,3058.6,0.19666897]
[1764775295848,3.2078,3059.0,3058.6,3.40446897]
[1764775296050,3.2078,3059.0,3058.6,0.19666897]
[1764775297456,0.00307594,3059.1,3058.8,3.2078]
[1764775297754,3.2078,3059.9,3059.2,1.6611]
[1764775297960,3.2078,3059.5,3058.6,3.40446897]
[1764775298360,3.2078,3059.5,3059.1,3.2078]
[1764775298563,3.2078,3059.5,3058.7,3.2078]
[1764775298749,0.00287582,3059.5,3059.2,1.6611]
[1764775299860,0.00287582,3059.5,3058.9,3.2078]
[1764775300058,3.2078,3059.2,3058.6,10.93266897]
[1764775300255,3.2078,3058.7,3058.6,0.19666897]
[1764775300560,0.00490268,3059.0,3058.6,0.19666897]
[1764775302068,3.2078,3058.7,3058.6,0.19666897]
[1764775302457,3.2078,3058.7,3057.7,3.2078]
[1764775302964,2.63811449,3057.8,3056.8,3.2078]
[1764775303158,3.2078,3057.2,3056.1,3.2078]
[1764775303354,3.2078,3057.2,3055.9,0.25230586]
[1764775303355,3.2078,3057.2,3056.6,3.2078]
[1764775303550,3.2078,3057.8,3057.1,3.2078]
[1764775304067,3.2078,3058.4,3057.7,3.2078]
[1764775304365,2.63811449,3058.2,3057.5,3.2078]
[1764775304558,2.64561785,3058.2,3057.5,0.00490268]
[1764775304866,2.64561785,3058.2,3057.5,3.21270268]
[1764775305559,0.00750336,3058.2,3057.5,3.21270268]
[1764775305959,3.2078,3058.9,3057.9,3.2078]
[1764775306165,3.2078,3058.9,3058.2,1.6611]
[1764775306556,0.25120636,3060.7,3058.5,3.2078]
[1764775306557,3.2078,3059.2,3058.5,3.2078]
[1764775306757,3.2078,3060.3,3059.1,4.8689]
[1764775307061,0.00490268,3060.0,3059.4,0.00490268]
[1764775307365,0.00490268,3060.0,3059.7,3.2078]
[1764775307563,1.66470268,3060.0,3059.7,3.2078]
[1764775307867,0.00490268,3060.0,3059.7,3.2078]
[1764775308561,0.00490268,3060.0,3059.4,0.00490268]
[1764775308768,0.00490268,3060.0,3059.7,3.2078]
[1764775309263,3.21161801,3060.3,3059.7,3.2078]
[1764775309858,3.21161801,3060.3,3059.6,3.2078]
[1764775310270,3.21652069,3060.3,3059.6,3.2078]
[1764775310770,3.21652069,3060.3,3059.5,3.2078]
[1764775310968,3.37115,3059.9,3059.1,0.00294421]
[1764775311273,2.63811449,3059.4,3058.1,3.2078]
[1764775311467,3.2078,3059.1,3058.5,3.2078]
[1764775311775,4.8676,3059.1,3058.1,3.2078]
[1764775311958,3.2078,3058.7,3057.7,10.7588]
[1764775312158,0.00490268,3058.5,3057.9,0.00490268]
[1764775312467,3.2078,3058.3,3057.9,0.00490268]
[1764775312658,0.00490268,3058.5,3057.9,3.21270268]
[1764775312858,0.00490268,3058.5,3058.3,3.2078]
[1764775313058,3.2078,3058.8,3058.3,9.1858]
[1764775313462,3.2078,3058.8,3058.3,9.34924]
[1764775313663,3.2078,3059.7,3058.7,3.2078]
[1764775313868,0.00381801,3060.3,3059.6,3.2078]
[1764775314064,2.63811449,3059.9,3059.6,0.00490268]
[1764775314572,0.00872069,3060.3,3059.6,0.00490268]
[1764775314763,0.00872069,3060.3,3059.6,3.21270268]
[1764775314968,2.63811449,3060.2,3059.6,0.00490268]
[1764775315169,2.63811449,3060.2,3059.6,3.21270268]
[1764775315366,2.63811449,3060.2,3059.6,0.00490268]
[1764775315572,1.6598,3060.0,3059.6,0.00490268]
[1764775315758,3.98075764,3059.9,3059.6,0.00490268]
[1764775316071,0.77276013,3059.8,3059.2,3.2078]
[1764775316575,4.36479054,3060.3,3059.4,3.2078]
[1764775316772,0.77442982,3060.2,3059.4,3.2078]
[1764775317160,0.77442982,3060.2,3059.5,7.70690268]
[1764775317371,0.77442982,3060.1,3059.5,7.70690268]
[1764775317670,0.77442982,3060.0,3059.5,7.70690268]
[1764775317868,3.21652069,3060.3,3059.5,7.70690268]
[1764775317869,0.77442982,3059.9,3059.5,7.70690268]
[1764775318165,3.21652069,3060.3,3059.5,0.00490268]
[1764775318166,0.77215803,3059.8,3059.5,0.00490268]
[1764775318365,0.77215803,3059.7,3059.5,0.00490268]
[1764775318665,0.77215803,3059.6,3059.5,0.00490268]
[1764775319264,0.77268541,3059.6,3059.5,0.00490268]
[1764775319467,1.10830383,3059.6,3058.5,2.21]
[1764775319660,3.2078,3059.1,3058.5,2.21]
[1764775319860,1.16132682,3059.3,3058.5,2.21]
[1764775319861,0.77268541,3059.0,3058.5,2.21]
[1764775320157,3.9802258,3058.9,3058.5,2.21]
[1764775320357,0.7724258,3058.8,3058.1,3.2078]
[1764775320559,0.7724258,3058.7,3058.1,3.21270268]
[1764775320763,0.7724258,3058.6,3058.1,0.00490268]
[1764775320962,0.77231431,3058.5,3058.1,0.00490268]
[1764775321170,1.16132682,3059.3,3058.8,0.16341]
[1764775321466,0.00381801,3060.3,3059.7,0.16336]
[1764775321669,0.77225409,3060.2,3059.8,3.37116]
[1764775321969,1.16132682,3060.7,3060.0,1.6611]
[1764775322169,3.2078,3061.2,3060.6,0.16332]
[1764775322465,3.2078,3061.2,3059.7,3.2078]
[1764775322466,5.84591449,3060.7,3059.7,3.2078]
[1764775322660,3.2078,3060.1,3059.2,4.2444]
[1764775322862,2.63811449,3059.9,3059.4,3.2078]
[1764775323062,0.00398249,3059.9,3059.4,0.00366969]
[1764775323367,0.00398249,3059.9,3059.5,3.2078]
[1764775323665,0.00398249,3059.9,3059.6,0.16337]
[1764775323867,0.00398249,3059.9,3059.4,0.00366969]
[1764775323868,3.21178249,3059.9,3059.4,0.00366969]
[1764775324371,0.00398249,3059.9,3059.8,3.2078]
[1764775324569,0.00398249,3059.9,3059.4,3.21146969]
[1764775324966,1.16029671,3061.1,3060.0,1.96074]
[1764775325164,3.2078,3060.4,3059.4,0.00366969]
[1764775325471,0.72428627,3060.3,3059.4,0.00366969]
[1764775325765,3.2078,3060.2,3059.4,0.00366969]
[1764775325970,0.72428627,3060.1,3059.4,0.00366969]
[1764775326270,3.2078,3059.8,3059.4,0.00366969]
[1764775326471,0.16337,3059.6,3058.6,3.2078]
[1764775326669,4.36809671,3059.8,3058.6,3.2078]
[1764775326670,0.72428627,3059.5,3058.6,3.2078]
[1764775326973,4.26674285,3059.4,3058.6,3.2078]
[1764775327159,4.26674285,3059.4,3058.3,10.748]
[1764775327160,3.2078,3058.8,3058.3,10.748]
[1764775327361,0.72390729,3058.7,3058.3,10.75197427]
[1764775327866,0.72390729,3058.7,3058.3,0.00397427]